Cogmind - Beta 12 @@@ ROGUE MODE // 2023.04.17 @ 14:43:04 Player: Mr Goldstein Result: Destroyed by S-27 Virus with Autogun Performance ------------- Evolutions (3) 1500 Regions Visited (6) 1200 Robots Destroyed (1) 5 Value Destroyed (5) 5 Prototype IDs (0) 0 Alien Tech Used (0) 0 Bonus (834) 834 TOTAL SCORE: 3544 Bonus ------- Pacifist 834 Cogmind --------- Core Integrity 0/700 Matter 300/300 Energy 100/100 System Corruption 2% Temperature Cool (0) Movement Core (50) Location -7/Lower Caves Parts ------- > --- POWER (1) -------- (None) > --- PROPULSION (5) --- (None) > --- UTILITY (5) ------ (None) > --- WEAPON (2) ------- (None) > --- INVENTORY (5) ---- Improved Grenade Launcher Ripper Peak State ------------ None Favorites ----------- Power None Propulsion None Utility None Weapon None Build | -11 -10 -10 -9 -8 -7 -7 ------- Run | Jun Mat Min Mat Mat Fac Low Slots Evolved 6 | . . . 2 2 2 . Power . | . . . . . . . Propulsion 3 | . . . 2 . 1 . Utility 3 | . . . . 2 1 . Weapon . | . . . . . . . Parts Attached . | . . . . . . . Power . | . . . . . . . Engine . | . . . . . . . Core . | . . . . . . . Reactor . | . . . . . . . Propulsion . | . . . . . . . Treads . | . . . . . . . Leg . | . . . . . . . Wheel . | . . . . . . . Hover . | . . . . . . . Flight . | . . . . . . . Utility . | . . . . . . . Device . | . . . . . . . Storage . | . . . . . . . Processor . | . . . . . . . Hackware . | . . . . . . . Protection . | . . . . . . . Artifact . | . . . . . . . Weapon . | . . . . . . . Energy Gun . | . . . . . . . Energy Cannon . | . . . . . . . Ballistic Gun . | . . . . . . . Ballistic Cannon . | . . . . . . . Launcher . | . . . . . . . Special Weapon . | . . . . . . . Impact Weapon . | . . . . . . . Slashing Weapon . | . . . . . . . Piercing Weapon . | . . . . . . . Special Melee Weapon . | . . . . . . . Unidentified Prototypes . | . . . . . . . Parts Lost . | . . . . . . . Power . | . . . . . . . Propulsion . | . . . . . . . Utility . | . . . . . . . Weapon . | . . . . . . . Highest Loss Streak . | . . . . . . . To Critical Strikes . | . . . . . . . Average Slot Usage (%) . | . . . . . . . Naked Turns 394 | . 25 75 42 46 205 1 Heaviest Build . | . . . . . . . Greatest Support 3 | 3 3 3 3 3 3 3 Greatest Overweight (x) . | . . . . . . . Average Overweight (x) . | . . . . . . . Largest Inventory Capacity 5 | 5 5 5 5 5 5 5 Average Capacity 5 | 5 5 5 5 5 5 5 Most Carried 2 | . . 1 1 1 2 2 Average Carried 1 | . . . 1 1 1 2 Final Capacity 5 | 5 5 5 5 5 5 5 Final Carried 2 | . . 1 1 1 2 2 Class Distribution -------------------- 100% | Mutant Dominant Class ---------------- Mutant | -10/Materials Mutant | -10/Mines Mutant | -9/Materials Mutant | -8/Materials Mutant | -7/Factory Mutant | -7/Lower Caves Resources | -11 -10 -10 -9 -8 -7 -7 ----------- Run | Jun Mat Min Mat Mat Fac Low Matter Collected 200 | 187 . 13 . . . . Remotely . | . . . . . . . Salvage Created 21 | . . . . . 21 . Parts 3 | . . . . . 3 . Haulers Intercepted . | . . . . . . . Recyclers Shooed . | . . . . . . . Parts Field Recycled . | . . . . . . . Retrieved Matter . | . . . . . . . Parts Self-Destructed . | . . . . . . . Prevented . | . . . . . . . Kills | -11 -10 -10 -9 -8 -7 -7 ------- Run | Jun Mat Min Mat Mat Fac Low Combat Hostiles Destroyed . | . . . . . . . Classes Destroyed 1 | . . . . . 1 . Builder 1 | . . . . . 1 . Best Kill Streak 1 | . . . . . 1 . Combat Bots Only . | . . . . . . . Max Kills in Single Turn 1 | . . . . . 1 . Gunslinging . | . . . . . . . Exploded . | . . . . . . . Melee . | . . . . . . . Uniques/NPCs Destroyed . | . . . . . . . Combat | -11 -10 -10 -9 -8 -7 -7 -------- Run | Jun Mat Min Mat Mat Fac Low Damage Taken 1096 | . 64 100 10 210 698 14 Core 1096 | . 64 100 10 210 698 14 Absorbed by Shields . | . . . . . . . Core Remaining (%) 73 | 100 . 34 97 61 . . Volleys Fired . | . . . . . . . Largest . | . . . . . . . Hottest . | . . . . . . . Shots Fired . | . . . . . . . Gun . | . . . . . . . Cannon . | . . . . . . . Launcher . | . . . . . . . Special . | . . . . . . . Kinetic . | . . . . . . . Thermal . | . . . . . . . Explosive . | . . . . . . . Electromagnetic . | . . . . . . . Robot Hit Streak . | . . . . . . . Robot Miss Streak . | . . . . . . . Penetration Max . | . . . . . . . Secondary Targets . | . . . . . . . Shots Hit Robots . | . . . . . . . Core Hits 4 | . . . 1 . 3 . Critical Kills . | . . . . . . . Critical Parts Destroyed . | . . . . . . . Critical Strikes . | . . . . . . . Melee Attacks . | . . . . . . . Impact . | . . . . . . . Slashing . | . . . . . . . Piercing . | . . . . . . . Sneak Attacks . | . . . . . . . Combat Hostiles . | . . . . . . . Follow-up Attacks . | . . . . . . . Damage Inflicted 35 | . . 2 1 . 32 . Guns . | . . . . . . . Cannons . | . . . . . . . Explosions . | . . . . . . . Melee . | . . . . . . . Ramming 35 | . . 2 1 . 32 . Kinetic . | . . . . . . . Thermal . | . . . . . . . Explosive . | . . . . . . . Electromagnetic . | . . . . . . . Impact . | . . . . . . . Slashing . | . . . . . . . Piercing . | . . . . . . . Highest Corruption 2 | . . . . . 2 2 Average Corruption 1 | . . . . . 1 2 Corruption Purged . | . . . . . . . Corruption Blocked . | . . . . . . . Overload Shots . | . . . . . . . Overflow Damage . | . . . . . . . Projectiles . | . . . . . . . Explosions . | . . . . . . . Melee . | . . . . . . . Knockbacks . | . . . . . . . Impact . | . . . . . . . Kinetic . | . . . . . . . Secondary . | . . . . . . . Self-Inflicted Damage 16 | . . 1 . . 15 . Shots . | . . . . . . . Rammed 14 | . . 1 1 . 12 . Targets Rammed 14 | . . 1 1 . 12 . Kicked . | . . . . . . . Crushed . | . . . . . . . Highest Temperature 5 | . . . . 5 . . Average Temperature 5 | . . . . 5 . . Received Heat Transfer 261 | . 36 . 6 117 102 . Siege Activations . | . . . . . . . Robots Corrupted . | . . . . . . . Combat Hostiles . | . . . . . . . Parts Fried . | . . . . . . . Impact Corruptions . | . . . . . . . Robots Melted . | . . . . . . . Combat Hostiles . | . . . . . . . Parts Melted . | . . . . . . . Heat Transferred . | . . . . . . . Parts Sabotaged . | . . . . . . . Parts Stolen . | . . . . . . . Parts Stripped . | . . . . . . . Power Chain Reactions . | . . . . . . . Missiles Intercepted . | . . . . . . . Alert | -11 -10 -10 -9 -8 -7 -7 ------- Run | Jun Mat Min Mat Mat Fac Low Peak Influence 209 | . 15 50 19 37 209 . Initial 19 | . . 5 19 7 16 . Average 58 | . 1 14 19 21 100 . Maximum Alert Level 1 | . . . . . 1 . Low Security (%) 99 | 100 100 100 100 100 98 . Level 1 . | . . . . . 1 . Level 2 . | . . . . . . . Level 3 . | . . . . . . . Level 4 . | . . . . . . . Level 5 . | . . . . . . . High Security . | . . . . . . . Max Security . | . . . . . . . Squads Dispatched 4 | . . . . 2 2 . Investigation 1 | . . . . 1 . . Extermination . | . . . . . . . Reinforcement 3 | . . . . 1 2 . Assault . | . . . . . . . Garrison . | . . . . . . . Intercept . | . . . . . . . Searches Triggered . | . . . . . . . Construction Impeded . | . . . . . . . Haulers Reinforced 1 | . . . . . 1 . Active Scanning Responses . | . . . . . . . Cargo Convoy Interrupts . | . . . . . . . Stealth | -11 -10 -10 -9 -8 -7 -7 --------- Run | Jun Mat Min Mat Mat Fac Low Distress Signals . | . . . . . . . Communications Jammed . | . . . . . . . Distress Signals . | . . . . . . . Times Spotted 55 | . 3 18 3 10 18 3 Peak Tracking Total 15 | . 4 15 3 11 10 3 Tactical Retreats 4 | . . 1 . . 3 . Traps | -11 -10 -10 -9 -8 -7 -7 ------- Run | Jun Mat Min Mat Mat Fac Low Traps Triggered 1 | . . . . 1 . . Indirectly . | . . . . . . . Trap Hack Attempts . | . . . . . . . Triggered . | . . . . . . . Disarmed . | . . . . . . . Reprogrammed . | . . . . . . . Reused 2 | . . 2 . . . . Traps Extracted . | . . . . . . . Installed 2 | . . 2 . . . . Triggered . | . . . . . . . Machines | -11 -10 -10 -9 -8 -7 -7 ---------- Run | Jun Mat Min Mat Mat Fac Low Machines Disabled . | . . . . . . . Max in Single Turn . | . . . . . . . Machines Repaired . | . . . . . . . Machines Sabotaged . | . . . . . . . Overloaded Fab Kills . | . . . . . . . Hacking | -11 -10 -10 -9 -8 -7 -7 --------- Run | Jun Mat Min Mat Mat Fac Low Machines Accessed 2 | . . 1 . . 1 . Terminals 1 | . . . . . 1 . Fabricators . | . . . . . . . Repair Stations . | . . . . . . . Recycling Units . | . . . . . . . Scanalyzers . | . . . . . . . Garrison Access . | . . . . . . . Total Hacks 2 | . . 1 . . 1 . Successful 2 | . . 1 . . 1 . Failed . | . . . . . . . Catastrophic . | . . . . . . . Database Lockouts . | . . . . . . . Manual 1 | . . . . . 1 . Terminals 1 | . . . . . 1 . Fabricators . | . . . . . . . Repair Stations . | . . . . . . . Recycling Units . | . . . . . . . Scanalyzers . | . . . . . . . Garrison Access . | . . . . . . . Terminal Hacks 2 | . . 1 . . 1 . Open Door 1 | . . 1 . . . . Branch Access Points 1 | . . . . . 1 . Fabricator Hacks . | . . . . . . . Repair Station Hacks . | . . . . . . . Recycling Unit Hacks . | . . . . . . . Scanalyzer . | . . . . . . . Garrison Access Hacks . | . . . . . . . Unauthorized Hacks . | . . . . . . . Terminals . | . . . . . . . Fabricators . | . . . . . . . Repair Stations . | . . . . . . . Recycling Units . | . . . . . . . Scanalyzers . | . . . . . . . Garrison Access . | . . . . . . . Data Cores Recovered . | . . . . . . . Used . | . . . . . . . Hacking Detections . | . . . . . . . Full Trace Events . | . . . . . . . Feedback Events . | . . . . . . . Feedback Blocked . | . . . . . . . Robot Schematics Acquired . | . . . . . . . Robots Built . | . . . . . . . Authchips . | . . . . . . . Time . | . . . . . . . Total Robot Build Rating . | . . . . . . . Part Schematics Acquired . | . . . . . . . Parts Built . | . . . . . . . Authchips . | . . . . . . . Time . | . . . . . . . Total Part Build Rating . | . . . . . . . Parts Repaired . | . . . . . . . Time . | . . . . . . . Parts Recycled . | . . . . . . . Recycled Matter . | . . . . . . . Retrieved Matter . | . . . . . . . Retrieved Components . | . . . . . . . Parts Scanalyzed . | . . . . . . . Part Schematics Acquired . | . . . . . . . Parts Damaged . | . . . . . . . Bothacking | -11 -10 -10 -9 -8 -7 -7 ------------ Run | Jun Mat Min Mat Mat Fac Low Used RIF Installer . | . . . . . . . Robots Hacked . | . . . . . . . Non-combat . | . . . . . . . Combat . | . . . . . . . Robot Hacks Applied . | . . . . . . . Relay Couplers Released . | . . . . . . . Fabnet Peak Effective % . | . . . . . . . Robots Rewired . | . . . . . . . Allies Hacked . | . . . . . . . Hacks Repelled . | . . . . . . . Allies | -11 -10 -10 -9 -8 -7 -7 -------- Run | Jun Mat Min Mat Mat Fac Low Total Allies . | . . . . . . . Largest Group . | . . . . . . . Highest-Rated Group . | . . . . . . . Highest-Rated Ally . | . . . . . . . Total Orders . | . . . . . . . Ally Attacks . | . . . . . . . Total Damage . | . . . . . . . Kills . | . . . . . . . Allies Corrupted . | . . . . . . . Allies Melted . | . . . . . . . Intel | -11 -10 -10 -9 -8 -7 -7 ------- Run | Jun Mat Min Mat Mat Fac Low Robot Analysis Total . | . . . . . . . Derelict Logs Recovered 1 | . . 1 . . . . Drone Launches . | . . . . . . . Drone Recoveries . | . . . . . . . Exploration | -11 -10 -10 -9 -8 -7 -7 ------------- Run | Jun Mat Min Mat Mat Fac Low Turns Passed 404 | 10 25 75 42 46 205 1 Spaces Moved 769 | 21 49 142 82 91 383 1 Core 769 | 21 49 142 82 91 383 1 Treads . | . . . . . . . Legs . | . . . . . . . Wheels . | . . . . . . . Hover . | . . . . . . . Flight . | . . . . . . . Fastest Speed 50 | 50 50 50 50 50 50 50 Average Speed 50 | 50 50 50 50 50 50 50 Slowest Speed 50 | 50 50 50 50 50 50 50 Overloaded Moves . | . . . . . . . Propulsion Burnouts . | . . . . . . . Robots Hopped . | . . . . . . . Cave-ins Triggered . | . . . . . . . Exploration Rate (%) 15 | 4 15 46 12 17 15 2 Regions Visited 6 Branch Regions 2 Pre-discovered Areas 1 | . . 1 . . . . Known Exits Taken 1 | . . . . . 1 . Unknown Exits Taken 5 | 1 1 1 1 1 . . Scrap Searched . | . . . . . . . Spaces Dug . | . . . . . . . Terrain Destroyed . | . . . . . . . Melee . | . . . . . . . Projectile . | . . . . . . . AOE . | . . . . . . . Terrain Rammed . | . . . . . . . Walls Destroyed . | . . . . . . . Machines Disabled . | . . . . . . . Actions | -11 -10 -10 -9 -8 -7 -7 --------- Run | Jun Mat Min Mat Mat Fac Low Total 781 | 20 48 145 82 90 395 1 Wait . | . . . . . . . Move 763 | 20 48 141 81 90 382 1 Hop . | . . . . . . . Pick Up 2 | . . 1 . . 1 . Fast Attach . | . . . . . . . Attach . | . . . . . . . Detach . | . . . . . . . Swap . | . . . . . . . Drop . | . . . . . . . Fire . | . . . . . . . Melee . | . . . . . . . Ram 14 | . . 1 1 . 12 . Kick . | . . . . . . . Crush . | . . . . . . . Escape Stasis . | . . . . . . . Rewire . | . . . . . . . Trap 2 | . . 2 . . . . Miscellaneous . | . . . . . . . Route ------- -11/Junkyard -10/Materials -10/Mines -9/Materials -8/Materials -7/Factory (discovered 2 exits: *Low x2) -7/Lower Caves History --------- Turn | Location | Event 5 | -11/Junkyard | Discovered new exit (range 14) 11 | -11/Junkyard | Entered Materials 31 | -10/Materials | Discovered new exit (range 10) 36 | -10/Materials | Entered Mines 46 | -10/Mines | Met a Derelict shopkeep closing up shop 65 | -10/Mines | A weapon hastily lodged in a ceiling crevice suddenly fell to the ground 84 | -10/Mines | Learned location of Mines (-8) 85 | -10/Mines | Assembled infested the area 85 | -10/Mines | Found a hidden stash of uninstalled traps 90 | -10/Mines | Assisted by a Guerilla fighting off Assembled 106 | -10/Mines | Core integrity fell below 50% 108 | -10/Mines | Discovered new exit (range 4) 111 | -10/Mines | Entered Materials 111 | -9/Materials | Evolved 2 slots: Propulsion x2 145 | -9/Materials | Discovered new exit (range 15) 153 | -9/Materials | Entered another Materials area 153 | -8/Materials | Evolved 2 slots: Utility x2 194 | -8/Materials | Discovered new exit (range 11) 199 | -8/Materials | Entered Factory 199 | -7/Factory | Evolved 2 slots: Propulsion x1, Utility x1 255 | -7/Factory | Identified exit to Lower Caves 305 | -7/Factory | Build established: Mutant 375 | -7/Factory | Core integrity fell below 50% 381 | -7/Factory | Core integrity fell below 20% 404 | -7/Factory | Entered Lower Caves 405 | -7/Lower Caves | Destroyed by S-27 Virus with Autogun Last Messages --------------- 00293_ Slammed into A-02 Transporter. 00293_ Destabilizing: System corrupted (+1). 00322_ Acquired Imp. Grenade Launcher. 00345_ Slug penetrates Power Conduit. 00348_ Penetrated by Slug. 00351_ Slammed into U-05 Engineer. 00356_ Slammed into A-02 Transporter. 00356_ A-02 Transporter calls for reinforcements. 00356_ ALERT: Hostile activity reported, dispatching reinforcements to area. 00357_ Slammed into A-02 Transporter. 00361_ Slammed into K-01 Serf. 00372_ T-07 Excavator destroyed. 00373_ K-01 Serf collects debris. 00376_ Penetrated by Slug. 00377_ K-01 Serf destroyed. 00381_ S-27 Virus destroyed. 00386_ Slammed into U-05 Engineer. 00397_ U-05 Engineer destroyed. LOCATION=LOWER CAVES GOAL=ESCAPE Map ----- +----------------------------------------------------+ | | | | | | | | | | | ?????????????????????????????????????????????????? | | ?????????????????????????????????????????????????? | | ?????????????????????????????????????????????????? | | ?????????????????????????????????????????????????? | | ?????????????????????????????????????????????????? | | ?????????????????????????????????????????????????? | | ?????????????????????????????????????????????????? | | ?????????????????????????????????????????????????? | | ?????????????????????????????????????????????????? | | ?????????????????????????????????????????????????? | | ?????????????????????????????????????????????????? | | ?????????????????????????????????????????????????? | | ?????????????????????????????????????????????????? | | ?????????????????????????????????????????????????? | | ?????????????????????????????????????????????????? | | ???????????????????????######????????????????????? | | ???????????????????????# ##???????????????????? | | ???????????????????????# #???????????????????? | | ???????????????????????# #######?????????????? | | ?????????????????####### #?????????????? | | ????????????# @ #????????????? | | ????????????# s ###### ##????????????? | | ????????????# ########ss ##?????????????????????? | | ??????????????????????#####??????????????????????? | | ?????????????????????????????????????????????????? | | ?????????????????????????????????????????????????? | | ?????????????????????????????????????????????????? | | ?????????????????????????????????????????????????? | | ?????????????????????????????????????????????????? | | ?????????????????????????????????????????????????? | | ?????????????????????????????????????????????????? | | ?????????????????????????????????????????????????? | | ?????????????????????????????????????????????????? | | ?????????????????????????????????????????????????? | | ?????????????????????????????????????????????????? | | ?????????????????????????????????????????????????? | | ?????????????????????????????????????????????????? | | ?????????????????????????????????????????????????? | | ?????????????????????????????????????????????????? | | ?????????????????????????????????????????????????? | | ?????????????????????????????????????????????????? | | ?????????????????????????????????????????????????? | | ?????????????????????????????????????????????????? | | ?????????????????????????????????????????????????? | | ?????????????????????????????????????????????????? | +----------------------------------------------------+ Best States ------------- Heat Dissipation 34 Energy Generation 5 Energy Capacity 100 Matter Stores 300 Matter Capacity 300 Sight Range 16 Terrain Scan Density 10 Evasion (%) 50 Item Schematics ----------------- None Robot Schematics ------------------ None Fabricated ------------ Nothing Alien Tech Used ----------------- None Achievements -------------- None Challenges ------------ None Game ------ Seed AngularScatterMediator Manual? 0 Play Time 00:05:40 Cumulative 118.7 hours Start 2023.04.17 @ 14:21:23 End 2023.04.17 @ 14:43:04 Sessions 1 Manual Loads 0 Difficulty Rogue Special Mode None Game No. 340 Rogue 340 Adventurer 0 Explorer 0 Win Type - Total 4 Types 4/0/0/0/0/0/0/0/0 Lore% 59 Gallery% 61 Achievement% 53 Wizard Run 0 Options --------- ASCII 0 Keyboard 0 Movement Numpad Keybinds 0 Fullscreen 1 Font 12/Smallcaps Map View 83x54 Tactical HUD 1 Map Filters NONE Filters NONE Steam 1 RUN: 3a2fb1d3-e582-4d5f-a7c5-1e8bafaa0ae0